Workbook

Sheet Týdenní přehled prodeje
B1: TÝDENNÍ PŘEHLED PRODEJNÍCH AKTIVIT | I1: PRODEJCE | J1: Jméno | L1: KONEC TÝDNE | M1: Datum
I3: MÍSTO | J3: Místo | L3: DNEŠNÍ DATUM | M3: Datum
B5: DNY | C5: V KANCELÁŘI | D5: MIMO KANCELÁŘ | E5: NÁVŠTĚVY V KANCELÁŘI | F5: NÁVŠTĚVY V TERÉNU | G5: HOVORY S POTENC. ZÁK. | H5: NOVÍ KLIENTI | I5: UBYTOVÁNÍ | J5: OBČERSTVENÍ | K5: PRONÁJEM MÍSTNOSTI | L5: OSTATNÍ* | M5: CELKEM
B6: Pondělí | C6: 14.00 Kč | D6: 23.00 Kč | E6: 4.00 Kč | F6: 45.00 Kč | G6: 22.00 Kč | H6: 2.00 Kč | I6: 100.00 Kč | J6: 0.00 Kč | K6: 0.00 Kč | L6: 0.00 Kč | M6: =SUM(Aktivita[[#This Row],[V KANCELÁŘI]:[OSTATNÍ*]]) -> 210.00 Kč
B7: Úterý | C7: 23.00 Kč | D7: 76.00 Kč | E7: 10.00 Kč | F7: 50.00 Kč | G7: 54.00 Kč | H7: 45.00 Kč | I7: 80.00 Kč | J7: 0.00 Kč | K7: 0.00 Kč | L7: 0.00 Kč | M7: =SUM(Aktivita[[#This Row],[V KANCELÁŘI]:[OSTATNÍ*]]) -> 338.00 Kč
B8: Středa | C8: 4.00 Kč | D8: 130.00 Kč | E8: 11.00 Kč | F8: 33.00 Kč | G8: 67.00 Kč | H8: 65.00 Kč | I8: 400.00 Kč | J8: 0.00 Kč | K8: 0.00 Kč | L8: 0.00 Kč | M8: =SUM(Aktivita[[#This Row],[V KANCELÁŘI]:[OSTATNÍ*]]) -> 710.00 Kč
B9: Čtvrtek | C9: 102.00 Kč | D9: 40.00 Kč | E9: 18.00 Kč | F9: 0.00 Kč | G9: 86.00 Kč | H9: 82.00 Kč | I9: 97.00 Kč | J9: 0.00 Kč | K9: 0.00 Kč | L9: 0.00 Kč | M9: =SUM(Aktivita[[#This Row],[V KANCELÁŘI]:[OSTATNÍ*]]) -> 425.00 Kč
B10: Pátek | C10: 33.00 Kč | D10: 55.00 Kč | E10: 22.00 Kč | F10: 49.00 Kč | G10: 143.00 Kč | H10: 26.00 Kč | I10: 50.00 Kč | J10: 0.00 Kč | K10: 0.00 Kč | L10: 0.00 Kč | M10: =SUM(Aktivita[[#This Row],[V KANCELÁŘI]:[OSTATNÍ*]]) -> 378.00 Kč
B11: Sobota | C11: 0.00 Kč | D11: 0.00 Kč | E11: 0.00 Kč | F11: 0.00 Kč | G11: 0.00 Kč | H11: 0.00 Kč | I11: 0.00 Kč | J11: 0.00 Kč | K11: 0.00 Kč | L11: 0.00 Kč | M11: =SUM(Aktivita[[#This Row],[V KANCELÁŘI]:[OSTATNÍ*]]) -> 0.00 Kč
B12: Neděle | C12: 0.00 Kč | D12: 0.00 Kč | E12: 0.00 Kč | F12: 0.00 Kč | G12: 0.00 Kč | H12: 0.00 Kč | I12: 0.00 Kč | J12: 0.00 Kč | K12: 0.00 Kč | L12: 0.00 Kč | M12: =SUM(Aktivita[[#This Row],[V KANCELÁŘI]:[OSTATNÍ*]]) -> 0.00 Kč
B13: Celkem | C13: =SUBTOTAL(109,Aktivita[V KANCELÁŘI]) -> 176.00 Kč | D13: =SUBTOTAL(109,Aktivita[MIMO KANCELÁŘ]) -> 324.00 Kč | E13: =SUBTOTAL(109,Aktivita[NÁVŠTĚVY V KANCELÁŘI]) -> 65.00 Kč | F13: =SUBTOTAL(109,Aktivita[NÁVŠTĚVY V TERÉNU]) -> 177.00 Kč | G13: =SUBTOTAL(109,Aktivita[HOVORY S POTENC. ZÁK.]) -> 372.00 Kč | H13: =SUBTOTAL(109,Aktivita[NOVÍ KLIENTI]) -> 220.00 Kč | I13: =SUBTOTAL(105,Aktivita[UBYTOVÁNÍ]) -> 0.00 Kč | J13: =SUBTOTAL(109,Aktivita[OBČERSTVENÍ]) -> 0.00 Kč | K13: =SUBTOTAL(109,Aktivita[PRONÁJEM MÍSTNOSTI]) -> 0.00 Kč | L13: =SUBTOTAL(109,Aktivita[OSTATNÍ*]) -> 0.00 Kč | M13: =SUBTOTAL(109,Aktivita[CELKEM]) -> 2,061.00 Kč
B15: CÍL | C15: 200.00 Kč | D15: 400.00 Kč | E15: 300.00 Kč | F15: 65.00 Kč | G15: 500.00 Kč | H15: 300.00 Kč | I15: 400.00 Kč | J15: 600.00 Kč | K15: 300.00 Kč | L15: 300.00 Kč | M15: =SUM(C15:L15) -> 3,365.00 Kč
B16: ODCHYLKA | C16: =SUM(Aktivita[[#Totals],[V KANCELÁŘI]]-C15) -> -24.00 Kč | D16: =SUM(Aktivita[[#Totals],[MIMO KANCELÁŘ]]-D15) -> -76.00 Kč | E16: =SUM(Aktivita[[#Totals],[NÁVŠTĚVY V KANCELÁŘI]]-E15) -> -235.00 Kč | F16: =SUM(Aktivita[[#Totals],[NÁVŠTĚVY V KANCELÁŘI]]-F15) -> 0.00 Kč | G16: =SUM(Aktivita[[#Totals],[HOVORY S POTENC. ZÁK.]]-G15) -> -128.00 Kč | H16: =SUM(Aktivita[[#Totals],[NOVÍ KLIENTI]]-H15) -> -80.00 Kč | I16: =SUM(Aktivita[[#Totals],[UBYTOVÁNÍ]]-I15) -> -400.00 Kč | J16: =SUM(Aktivita[[#Totals],[OBČERSTVENÍ]]-J15) -> -600.00 Kč | K16: =SUM(Aktivita[[#Totals],[PRONÁJEM MÍSTNOSTI]]-K15) -> -300.00 Kč | L16: =SUM(Aktivita[[#Totals],[OSTATNÍ*]]-L15) -> -300.00 Kč | M16: =SUM(C16:L16) -> -2,143.00 Kč
B18: *VYSVĚTLENÍ
B20: Schválení
